lending/lending_fUSD_20251121
["ID","MTS","AMOUNT","RATE_DAILY","PERIOD"]
[394588379,1763742589620,-9110.01,0.00014644,2]
[394588380,1763742589764,-10000.01,0.00014644,2]
[394588381,1763742589995,-10000.01,0.00014644,2]
[394588382,1763742590226,-10000.01,0.00014644,2]
[394588383,1763742590713,-10000.01,0.00014644,2]
[394588384,1763742590749,-10000.01,0.00014644,2]
[394588385,1763742618503,-677.58,0.00014634,2]
[394588386,1763742618536,-677.58,0.00014635,2]
[394588387,1763742618570,-300.0,0.00014642,2]
[394588388,1763742618603,-150.0,0.00014642,2]
[394588389,1763742618637,-1200.0,0.00014642,2]
[394588390,1763742618671,-300.0,0.00014642,2]
[394588391,1763742618709,-300.0,0.00014642,2]
[394588392,1763742618746,-250.0,0.00014642,2]
[394588393,1763742618786,-500.0,0.00014643,2]
[394588394,1763742618827,-500.0,0.00014643,2]
[394588395,1763742619141,-289.69,0.00014643,2]
[394588396,1763742619217,-210.31,0.00014643,2]
[394588397,1763742619266,-500.0,0.00014643,2]
[394588398,1763742619307,-500.0,0.00014643,2]
[394588399,1763742619352,-500.0,0.00014643,2]
[394588400,1763742619397,-500.0,0.00014643,2]
[394588401,1763742619445,-500.0,0.00014643,2]
[394588402,1763742619489,-500.0,0.00014643,2]
[394588403,1763742619531,-500.0,0.00014643,2]
[394588404,1763742619573,-500.0,0.00014643,2]
[394588405,1763742619614,-500.0,0.00014643,2]
[394588406,1763742619657,-79.39,0.00014643,2]
[394588407,1763742620640,-420.61,0.00014643,2]
[394588408,1763742620680,-500.0,0.00014643,2]
[394588409,1763742620720,-560.40002495,0.00014643,2]
[394588410,1763742620758,-500.0,0.00014643,2]
[394588411,1763742620797,-500.0,0.00014643,2]
[394588412,1763742620839,-500.0,0.00014643,2]
[394588413,1763742620880,-500.0,0.00014643,2]
[394588414,1763742620919,-500.0,0.00014643,2]
[394588415,1763742620960,-500.0,0.00014643,2]
[394588416,1763742620999,-500.0,0.00014643,2]
[394588417,1763742622127,-420.61,0.00014643,2]
[394588418,1763742622151,-37.9899501,0.00014643,2]
[394588419,1763742622777,-41.4000499,0.00014643,2]
[394588420,1763742622823,-500.0,0.00014643,2]
[394588421,1763742622865,-500.0,0.00014643,2]
[394588422,1763742622910,-500.0,0.00014643,2]
[394588423,1763742622957,-500.0,0.00014643,2]
[394588424,1763742623000,-500.0,0.00014643,2]
[394588425,1763742623041,-500.0,0.00014643,2]
[394588426,1763742623085,-500.0,0.00014643,2]
[394588427,1763742623125,-500.0,0.00014643,2]
[394588428,1763742623168,-500.0,0.00014643,2]
[394588429,1763742623218,-417.2099002,0.00014643,2]
[394588430,1763742623307,-82.7900998,0.00014643,2]
[394588431,1763742623352,-500.0,0.00014643,2]
[394588432,1763742623397,-500.0,0.00014643,2]
[394588433,1763742623449,-500.0,0.00014643,2]
[394588434,1763742623494,-500.0,0.00014643,2]
[394588435,1763742623538,-500.0,0.00014643,2]
[394588436,1763742624116,-82.7900998,0.00014644,2]
[394588437,1763742624150,-4834.4298004,0.00014644,2]
[394588438,1763742624240,-10000.01,0.00014644,2]
[394588439,1763742624563,-500.0,0.00014643,2]
[394588440,1763742624572,-500.0,0.00014643,2]
[394588441,1763742624583,-9000.01,0.00014644,2]
[394588442,1763742624642,-500.0,0.00014643,2]
[394588443,1763742624652,-500.0,0.00014643,2]
[394588444,1763742624662,-9000.01,0.00014644,2]
[394588445,1763742625951,-500.0,0.00014643,2]
[394588446,1763742625991,-500.0,0.00014643,2]
[394588447,1763742626033,-500.0,0.00014643,2]
[394588448,1763742626075,-500.0,0.00014643,2]
[394588449,1763742626116,-500.0,0.00014643,2]
[394588450,1763742626158,-500.0,0.00014643,2]
[394588451,1763742626206,-500.0,0.00014643,2]
[394588452,1763742626248,-500.0,0.00014643,2]
[394588453,1763742626288,-546.37339674,0.00014643,2]
[394588454,1763742626328,-407.26320652,0.00014643,2]
[394588455,1763742626488,-92.73679348,0.00014643,2]
[394588456,1763742626533,-500.0,0.00014643,2]
[394588457,1763742626579,-500.0,0.00014643,2]
[394588458,1763742627037,-92.73679348,0.00014644,2]
[394588459,1763742627070,-7814.53641304,0.00014644,2]
[394588460,1763742627104,-10000.01,0.00014644,2]
[394588461,1763742627152,-10000.01,0.00014644,2]
[394588462,1763742627179,-10000.01,0.00014644,2]
[394588477,1763742631670,-3475.47149216,0.00014644,2]
[394588478,1763742631681,-271.54991355,0.00014644,2]
[394588479,1763742631698,-497.55228091,0.00014644,2]
[394588480,1763742631710,-1508.04141765,0.00014644,2]
[394588481,1763742631721,-1009.87494404,0.00014644,2]
[394588482,1763742631732,-606.48713533,0.00014644,2]
[394588483,1763742631762,-3840.66748831,0.00014644,2]
[394588484,1763742631773,-4953.41143284,0.00014644,2]
[394588497,1763742632302,-10000.01,0.00014644,2]
[394588498,1763742632499,-10000.01,0.00014644,2]
[394588510,1763742637731,168.38,7.619e-05,2]
[394588511,1763742637810,168.38,8.707e-05,2]
[394588512,1763742637983,-294.3711004,0.00014644,2]
[394588514,1763742638023,-351470.66118932,0.00014644,2]
[394588516,1763742638033,-195.0,0.00014644,2]
[394588518,1763742638044,-36492.3431,0.00014645,2]
[394588520,1763742638053,-500.0,0.00014673,2]
[394588522,1763742638063,-703.81,0.00014743,2]
[394588524,1763742638073,-1333.24528,0.00014744,2]
[394588526,1763742638082,-500.0,0.00014745,2]
[394588528,1763742638093,-500.0,0.00014745,2]
[394588530,1763742638102,-500.0,0.00014745,2]
[394588532,1763742638112,-500.0,0.00014745,2]
[394588534,1763742638122,-500.0,0.00014745,2]
[394588536,1763742638132,-500.0,0.00014745,2]
[394588539,1763742638142,-500.0,0.00014745,2]
[394588540,1763742638151,-500.0,0.00014745,2]
[394588542,1763742638161,-500.0,0.00014745,2]
[394588544,1763742638171,-500.0,0.00014745,2]
[394588547,1763742638183,-500.0,0.00014745,2]
[394588549,1763742638192,-500.0,0.00014745,2]
[394588550,1763742638205,-500.0,0.00014745,2]
[394588553,1763742638215,-500.0,0.00014745,2]
[394588554,1763742638225,-500.0,0.00014745,2]
[394588556,1763742638234,-500.0,0.00014745,2]
[394588558,1763742638244,-180.52953997,0.00014745,2]
[394588560,1763742638253,-551.0391,0.00014745,2]
[394588562,1763742638263,-1600.0,0.00014874,2]
[394588564,1763742638272,-1000.0,0.00014899,2]
[394588566,1763742638282,-477.88929844,0.00014899,2]
[394588568,1763742638292,-1000.0,0.00014899,2]
[394588570,1763742638302,-768.01,0.00015009,2]
[394588572,1763742638311,-688.7109008,0.00015023,2]
[394588574,1763742638321,-2751.0,0.00015025,2]
[394588577,1763742638331,-166.66,0.00015052,2]
[394588579,1763742638340,-160.65736387,0.0001511,2]
[394588581,1763742638350,-610.0,0.00015142,2]
[394588583,1763742638360,-1043.8,0.00015154,2]
[394588585,1763742638371,-500.0,0.00015221,2]
[394588587,1763742638381,-768.01,0.00015283,2]
[394588589,1763742638390,-6610.88,0.0001531,2]
[394588591,1763742638400,-166.66,0.00015369,2]
[394588593,1763742638410,-688.7109008,0.00015503,2]
[394588595,1763742638419,-768.01,0.00015557,2]
[394588597,1763742638429,-160.65736387,0.00015676,2]
[394588599,1763742638438,-151.0,0.00015683,2]
[394588601,1763742638447,-166.66,0.00015685,2]
[394588603,1763742638460,-200.0,0.00015687,2]
[394588605,1763742638469,-151.0,0.00015723,2]
[394588607,1763742638480,-200.0,0.00015724,2]
[394588609,1763742638489,-151.0,0.00015729,2]
[394588611,1763742638499,-151.0,0.00015743,2]
[394588613,1763742638509,-250.0,0.00015744,2]
[394588615,1763742638519,-255.0,0.00015769,2]
[394588617,1763742638529,-150.0,0.00015769,2]
[394588619,1763742638538,-1000.0,0.00015804,2]
[394588621,1763742638548,-768.01,0.00015831,2]
[394588623,1763742638558,-1337.46,0.00015887,2]
[394588625,1763742638567,-688.7109008,0.00015982,2]
[394588627,1763742638577,-1495.53,0.0001599,2]
[394588629,1763742638587,-166.66,0.00016002,2]
[394588631,1763742638596,-1852.42,0.00016007,2]
[394588633,1763742638609,-420.0,0.00016031,2]
[394588635,1763742638619,-420.0,0.00016031,2]
[394588637,1763742638629,-420.0,0.00016031,2]
[394588639,1763742638639,-768.06,0.00016105,2]
[394588641,1763742638649,-1680.0,0.00016106,2]
[394588643,1763742638660,-250.0,0.00016106,2]
[394588645,1763742638669,-250.0,0.00016107,2]
[394588647,1763742638679,-195.0,0.00016107,2]
[394588649,1763742638688,-195.0,0.00016108,2]
[394588651,1763742638698,-2805.67757596,0.000162,5]
[394588653,1763742638711,-160.65736387,0.00016242,2]
[394588655,1763742638720,-166.66,0.00016319,2]
[394588657,1763742638730,-500.0,0.00016438,2]
[394588659,1763742638739,-500.0,0.00016438,2]
[394588661,1763742638750,-500.0,0.00016438,2]
[394588663,1763742638760,-500.0,0.00016438,2]
[394588665,1763742638770,-500.0,0.00016438,2]
[394588667,1763742638780,-688.7109008,0.00016462,2]
[394588669,1763742638790,-166.66,0.00016636,2]
[394588671,1763742638801,-500.0,0.00016712,2]
[394588673,1763742638814,-500.0,0.00016712,2]
[394588675,1763742638824,-6482.51329495,0.00016719,2]
[394588677,1763742638833,-1600.0,0.00016733,2]
[394588679,1763742638843,-1333.24529,0.00016744,2]
[394588681,1763742638854,-1096.0,0.00016783,2]
[394588683,1763742638864,-160.65736387,0.00016807,2]
[394588685,1763742638873,-207.44889093,0.00016819,2]
[394588687,1763742638884,-6482.51329492,0.00016855,2]
[394588689,1763742638894,-926.4313,0.00016886,2]
[394588691,1763742638903,-1566.23660225,0.0001689,2]
[394588693,1763742638912,-2400.0,0.000169,6]
[394588695,1763742638922,-692.7317532,0.000169,2]
[394588697,1763742638932,-1566.23660224,0.00016903,2]
[394588699,1763742638942,-2274.06283074,0.00016915,2]
[394588701,1763742638956,-418.19708538,0.00016915,2]
[394588703,1763742638966,-3102.37175146,0.00016915,2]
[394588706,1763742638975,-237.16603776,0.00016915,2]
[394588707,1763742638985,-223.6937853,0.00016915,2]
[394588710,1763742638996,-1566.23660224,0.00016915,2]
[394588712,1763742639006,-688.7109008,0.00016941,2]
[394588714,1763742639015,-500.0,0.00016973,2]
[394588715,1763742639024,-500.0,0.00016973,2]
[394588717,1763742639034,-500.7838585,0.00016973,2]
[394588720,1763742639044,-500.0,0.00016973,2]
[394588722,1763742639054,-500.0,0.00016973,2]
[394588724,1763742639065,-505.12903491,0.00016973,2]
[394588725,1763742639082,-500.0,0.00016973,2]
[394588727,1763742639093,-500.0,0.00016973,2]
[394588729,1763742639102,-500.0,0.00016973,2]
[394588731,1763742639113,-500.0,0.00016973,2]
[394588733,1763742639123,-500.0,0.00016973,2]
[394588735,1763742639133,-500.75390662,0.00016973,2]
[394588737,1763742639143,-500.0,0.00016973,2]
[394588739,1763742639154,-232.07579854,0.00016973,2]
[394588741,1763742639165,-500.0,0.00016973,2]
[394588744,1763742639176,-151.0,0.00016983,2]
[394588745,1763742639186,-1057.92687524,0.00016985,5]
[394588747,1763742639196,-433.0,0.00016985,2]
[394588749,1763742639211,-500.0,0.00016986,2]
[394588751,1763742639220,-500.0,0.00016986,2]
[394588753,1763742639230,-500.0,0.00016986,2]
[394588755,1763742639241,-500.0,0.00016986,2]
[394588757,1763742639251,-500.0,0.00016986,2]
[394588759,1763742639261,-500.0,0.00016986,2]
[394588762,1763742639272,-469581.37,0.00016986,2]
[394588764,1763742639281,-1219.71735426,0.0001699,2]
[394588766,1763742639290,-1219.71735426,0.0001699,2]
[394588767,1763742639301,-6482.51329492,0.0001699,2]
[394588770,1763742639311,-151.0,0.00016997,2]
[394588772,1763742639321,-151.0,0.00016997,2]
[394588774,1763742639332,-250.0,0.00017,2]
[394588776,1763742639343,-2000.0,0.00017,2]
[394588778,1763742639352,-2689086.26276107,0.00017,2]
[394588780,1763742639363,-692.73175313,0.00017015,2]
[394588782,1763742639372,-209.28124065,0.00017099,2]
[394588784,1763742639382,-6482.51329492,0.00017126,2]
[394588786,1763742639393,-692.73175313,0.00017131,2]
[394588788,1763742639403,-195.11100265,0.00017134,2]
[394588790,1763742639414,-2177.0,0.00017214,2]
[394588792,1763742639425,-550.0,0.00017231,2]
[394588794,1763742639434,-426.56612961,0.00017235,2]
[394588796,1763742639444,-692.73175313,0.00017246,2]
[394588798,1763742639459,-300.0,0.00017257,2]
[394588800,1763742639468,-500.0,0.0001726,2]
[394588802,1763742639478,-500.0,0.0001726,2]
[394588805,1763742639488,-6482.51329492,0.00017261,2]
[394588807,1763742639498,-163.00731315,0.00017284,2]
[394588809,1763742639507,-2177.0,0.00017302,2]
[394588811,1763742639518,-467.16057777,0.00017309,2]
[394588813,1763742639528,-2177.0,0.00017342,2]
[394588815,1763742639538,-692.73175313,0.00017362,2]
[394588817,1763742639548,-160.65736387,0.00017373,2]
[394588819,1763742639558,-321.0,0.00017392,2]
[394588821,1763742639568,-6482.51329492,0.00017397,2]
[394588823,1763742639578,-3700.0,0.000174,6]
[394588825,1763742639587,-2274.06283072,0.00017408,2]
[394588827,1763742639596,-418.19708536,0.00017408,2]
[394588829,1763742639607,-3102.37175144,0.00017408,2]
[394588831,1763742639616,-237.16603776,0.00017408,2]
[394588832,1763742639626,-688.7109008,0.00017421,2]
[394588833,1763742639636,-692.73175313,0.00017477,2]
[394588834,1763742639646,-703.81,0.00017482,2]
[394588835,1763742639656,-1601.0,0.00017483,2]
[394588836,1763742639667,-822.0,0.00017483,2]
[394588837,1763742639677,-659.0,0.00017483,2]
[394588838,1763742639686,-1256.0,0.00017483,2]
[394588839,1763742639695,-908.0,0.00017483,2]
[394588840,1763742639709,-1192.0,0.00017483,2]
[394588841,1763742639720,-561.0,0.00017483,2]
[394588842,1763742639730,-6496.0,0.00017483,2]
[394588843,1763742639740,-4900.0,0.000175,6]
[394588844,1763742639750,-1000.0,0.00017521,2]
[394588845,1763742639759,-1000.0,0.00017521,2]
[394588846,1763742639770,-1000.0,0.00017521,2]
[394588847,1763742639781,-1000.0,0.00017521,2]
[394588848,1763742639791,-1000.0,0.00017521,2]
[394588849,1763742639803,-1000.0,0.00017521,2]
[394588850,1763742639815,-1000.0,0.00017521,2]
[394588851,1763742639828,-154.81537229,0.00017521,2]
[394588852,1763742639990,-6482.51329492,0.00017532,2]
[394588853,1763742640016,-296.0,0.00017533,2]
[394588854,1763742640026,-296.0,0.00017533,2]
[394588855,1763742640037,-500.0,0.00017534,2]
[394588856,1763742640046,-500.0,0.00017534,2]
[394588857,1763742640056,-296.0,0.0001755,2]
[394588858,1763742640065,-587.0,0.00017551,2]
[394588859,1763742640074,-381.0,0.00017551,2]
[394588860,1763742640084,-587.0,0.00017551,2]
[394588861,1763742640093,-692.73175313,0.00017593,2]
[394588862,1763742640102,-550.0,0.00017599,2]
[394588863,1763742640112,-6200.0,0.000176,6]
[394588864,1763742640121,-1096.0,0.00017666,2]
[394588865,1763742640130,-6482.51329492,0.00017668,2]
[394588866,1763742640139,-1200.0,0.000177,6]
[394588867,1763742640149,-403.0,0.000177,5]
[394588868,1763742640158,-4507.872,0.00017708,2]
[394588869,1763742640167,-347.427,0.00017708,2]
[394588870,1763742640176,-692.73175313,0.00017708,2]
[394588871,1763742640185,-150.0,0.00017708,2]
[394588873,1763742640194,-150.0,0.00017708,2]
[394588874,1763742640206,-227.503,0.00017708,2]
[394588875,1763742640216,-150.0,0.00017708,2]
[394588876,1763742640225,-151.243,0.00017708,2]
[394588877,1763742640234,-283.616,0.00017708,2]
[394588878,1763742640244,-150.816,0.00017708,2]
[394588879,1763742640253,-162.0,0.00017708,2]
[394588880,1763742640263,-309.0,0.00017716,2]
[394588881,1763742640274,-2351.0,0.00017717,2]
[394588882,1763742640285,-1000.0,0.0001778,2]
[394588883,1763742640294,-296.0,0.00017796,2]
[394588884,1763742640305,-1200.0,0.000178,6]
[394588885,1763742640314,-6482.51329492,0.00017803,2]
[394588886,1763742640324,-500.0,0.00017808,2]
[394588887,1763742640334,-500.0,0.00017808,2]
[394588888,1763742640344,-692.73175313,0.00017824,2]
[394588889,1763742640354,-296.0,0.00017828,2]
[394588890,1763742640364,-296.0,0.00017837,2]
[394588891,1763742640373,-500.0,0.00017856,2]
[394588892,1763742640382,-500.0,0.00017856,2]
[394588893,1763742640393,-200.0,0.00017856,2]
[394588894,1763742640404,-1200.0,0.000179,6]
[394588895,1763742640414,-2274.06283072,0.000179,2]
[394588896,1763742640424,-418.19708536,0.000179,2]
[394588897,1763742640434,-3102.37175144,0.000179,2]
[394588898,1763742640443,-688.7109008,0.000179,2]
[394588899,1763742640456,-2339.40090819,0.000179,2]
[394588900,1763742640466,-237.16603776,0.000179,2]
[394588901,1763742640475,-1057.92687524,0.00017938,5]
[394588902,1763742640485,-6482.51329492,0.00017939,2]
[394588903,1763742640494,-692.73175313,0.00017939,2]
[394588904,1763742640504,-160.65736387,0.00017939,2]
[394588905,1763742640514,-500.0,0.00017945,2]
[394588906,1763742640524,-1406.0,0.00017945,2]
[394588907,1763742640534,-500.0,0.00017945,2]
[394588908,1763742640544,-204.7838812,0.00017945,2]
[394588909,1763742640554,-154.03692801,0.00017945,2]
[394588910,1763742640566,-150.0,0.00017945,2]
[394588911,1763742640579,-150.0,0.00017945,2]
[394588912,1763742640592,-205.51892774,0.00017945,2]
[394588913,1763742640602,-150.0,0.00017945,2]
[394588914,1763742640611,-500.0,0.00017945,2]
[394588915,1763742640621,-150.0,0.00017945,2]
[394588916,1763742640631,-500.0,0.00017945,2]
[394588917,1763742640640,-150.0,0.00017945,2]
[394588918,1763742640649,-150.0,0.00017945,2]
[394588919,1763742640659,-150.0,0.00017945,2]
[394588920,1763742640668,-150.0,0.00017945,2]
[394588921,1763742640679,-155.43606442,0.00017945,2]
[394588922,1763742640688,-500.0,0.00017945,2]
[394588923,1763742640697,-500.0,0.00017972,2]
[394588924,1763742640710,-580.65522907,0.00017973,2]
[394588925,1763742640720,-209.18141817,0.00017973,2]
[394588926,1763742640732,-500.0,0.00017973,2]
[394588927,1763742640742,-500.0,0.00017973,2]
[394588928,1763742640752,-500.0,0.00017973,2]
[394588929,1763742640762,-500.0,0.00017973,2]
[394588930,1763742640772,-500.0,0.00017973,2]
[394588931,1763742640782,-501.42210277,0.00017973,2]
[394588932,1763742640795,-501.10903681,0.00017973,2]
[394588933,1763742640818,-503.52814199,0.00017973,2]
[394588934,1763742640832,-500.0,0.00017973,2]
[394588935,1763742640843,-500.0,0.00017973,2]
[394588936,1763742640855,-500.0,0.00017973,2]
[394588937,1763742640865,-500.0,0.00017973,2]
[394588938,1763742640876,-502.46688489,0.00017973,2]
[394588939,1763742640887,-500.0,0.00017973,2]
[394588940,1763742640898,-164.07276883,0.00017973,2]
[394588941,1763742640910,-500.0,0.00017973,2]
[394588942,1763742640921,-500.0,0.00017973,2]
[394588943,1763742640932,-164.81541385,0.00017973,2]
[394588944,1763742640943,-162.87587658,0.00017973,2]
[394588945,1763742640959,-305.72760126,0.00017973,2]
[394588946,1763742640977,-513.33377773,0.00017973,2]
[394588947,1763742640987,-500.0,0.00017973,2]
[394588948,1763742640998,-500.0,0.00017973,2]
[394588949,1763742641009,-1219.71735426,0.0001799,2]
[394588950,1763742641019,-151.0,0.00017997,2]
[394588951,1763742641033,-300.0,0.00017999,2]
[394588952,1763742641049,-666.0,0.00017999,2]
[394588953,1763742641060,-301.55735151,0.00017999,2]
[394588954,1763742641071,-666.0,0.00017999,2]
[394588955,1763742641081,-300.0,0.00017999,2]
[394588956,1763742641091,-300.0,0.00017999,2]
[394588957,1763742641104,-300.0,0.00017999,2]
[394588958,1763742641117,-666.0,0.00017999,2]
[394588959,1763742641128,-500.0,0.00017999,2]
[394588960,1763742641137,-300.0,0.00017999,2]
[394588961,1763742641146,-666.0,0.00017999,2]
[394588962,1763742641155,-300.0,0.00017999,2]
[394588963,1763742641164,-150.0,0.00017999,2]
[394588964,1763742641174,-1057.92687524,0.00017999,5]
[394588965,1763742641184,-1057.92687524,0.00017999,5]
[394588966,1763742641193,-1057.92687524,0.00017999,5]
[394588967,1763742641203,-1057.92687524,0.00017999,5]
[394588968,1763742641212,-1057.92687524,0.00017999,5]
[394588969,1763742641223,-1057.92687524,0.00017999,5]
[394588970,1763742641233,-1057.92687524,0.00017999,5]
[394588971,1763742641242,-1057.92687524,0.00017999,5]
[394588972,1763742641253,-1057.92687524,0.00017999,5]
[394588973,1763742641264,-300.0,0.00017999,2]
[394588974,1763742641274,-666.0,0.00017999,2]
[394588975,1763742641284,-500.0,0.00017999,2]
[394588976,1763742641294,-500.0,0.00017999,2]
[394588977,1763742641304,-500.0,0.00017999,2]
[394588978,1763742641314,-500.0,0.00017999,2]
[394588979,1763742641324,-500.0,0.00017999,2]
[394588980,1763742641335,-500.0,0.00017999,2]
[394588981,1763742641345,-500.0,0.00017999,2]
[394588982,1763742641355,-500.0,0.00017999,2]
[394588983,1763742641365,-500.0,0.00017999,2]
[394588984,1763742641374,-500.0,0.00017999,2]
[394588985,1763742641385,-500.0,0.00017999,2]
[394588986,1763742641395,-500.0,0.00017999,2]
[394588987,1763742641407,-500.0,0.00017999,2]
[394588988,1763742641416,-229.46716056,0.00017999,2]
[394588989,1763742641426,-800.53296201,0.00018,2]
[394588990,1763742641435,-167.18070033,0.00018,2]
[394588991,1763742641446,-150.0,0.00018,2]
[394588992,1763742641461,-4212.24232343,0.00018,2]
[394588993,1763742641473,-150.0,0.00018,2]
[394588994,1763742641483,-4983.32857961,0.00018,2]
[394588995,1763742641493,-150.0,0.00018,2]
[394588996,1763742641503,-14449.53955014,0.00018,2]
[394588997,1763742641513,-150.0,0.00018,2]
[394588998,1763742641522,-4632.94724005,0.00018,2]
[394588999,1763742641532,-151.0,0.00018,2]
[394589000,1763742641542,-500.8,0.00018,2]
[394589001,1763742641552,-529.41,0.00018,2]
[394589002,1763742641561,-500.0,0.00018,3]
[394589003,1763742641571,-154.40281777,0.00018,2]
[394589004,1763742641581,-4751626.7783314,0.00018,2]
[394589005,1763742642131,-315.61003563,0.00018,2]
[394589006,1763742642171,168.38,9.795e-05,2]
[394589007,1763742642186,-8552.55942104,0.00018,2]
[394589008,1763742642199,-841.10047966,0.00018,2]
[394589009,1763742642215,-1381.48721596,0.00018,2]
[394589010,1763742642329,168.38,0.00010884,2]
[394589012,1763742642470,168.38,0.00011972,2]
[394589013,1763742642549,36.5952,0.0001306,2]
[394589014,1763742642827,131.7848,0.0001306,2]
[394589015,1763742643280,-168.38,0.00014149,2]
[394589016,1763742643289,-168.38,0.00015237,2]
[394589017,1763742643300,-500.0,0.00017945,2]
[394589018,1763742643309,-1594.00029212,0.00018,2]
[394589019,1763742643321,-41776.33999998,0.00018,2]
[394589020,1763742643333,-6184.33768461,0.00018,2]
[394589021,1763742643365,-104002.82930982,0.00018,2]
[394589022,1763742643378,-5222.21820928,0.00018,2]
[394589023,1763742643389,-1902.98596018,0.00018,2]
[394589024,1763742643410,-1287.72283817,0.00018,2]
[394589029,1763742645736,-274.18,0.000159,2]
[394589030,1763742646033,-37.6672573,0.000159,2]
[394589031,1763742646044,-1328.86,0.00017162,2]
[394589032,1763742646054,-267.9155527,0.00018,2]
[394589033,1763742646123,-26520.48532426,0.00018,2]
[394589038,1763742665141,1000.0,0.00014544,2]
[394589039,1763742675350,9000.01,0.00014544,2]
[394589040,1763742675388,10000.01,0.00014544,2]
[394589041,1763742675425,10000.01,0.00014544,2]
[394589042,1763742675463,10000.01,0.00014544,2]
[394589043,1763742675501,10000.01,0.00014544,2]
[394589044,1763742675539,10000.01,0.00014544,2]
[394589045,1763742675576,10000.01,0.00014544,2]
[394589046,1763742675612,10000.01,0.00014544,2]
[394589047,1763742675649,10000.01,0.00014544,2]
[394589048,1763742685891,-10000.01,0.00014544,2]
[394589049,1763742685955,-10000.01,0.00014543,2]
[394589050,1763742688642,-3064.24207906,0.00014543,2]
[394589051,1763742688702,-3871.52584188,0.00014543,2]
[394589052,1763742688835,-10000.01,0.00014544,2]
[394589053,1763742689053,-10000.01,0.00014544,2]
[394589054,1763742689215,-10000.01,0.00014544,2]
[394589055,1763742689382,-10000.01,0.00014544,2]
[394589056,1763742689539,-10000.01,0.00014544,2]
[394589057,1763742689676,-10000.01,0.00014544,2]
[394589058,1763742690063,-10000.01,0.00014544,2]
[394589059,1763742692574,-10000.01,0.00014544,2]
[394589060,1763742692720,-10000.01,0.00014544,2]
[394589061,1763742696267,-10000.01,0.00014544,2]
[394589062,1763742696579,-4702.319,0.00014253,2]
[394589063,1763742696641,-595.372,0.00014544,2]
[394589064,1763742696749,-343.033,0.00014253,2]
[394589065,1763742696805,-9313.944,0.00014544,2]
[394589066,1763742696935,-10000.01,0.00014544,2]
[394589067,1763742701956,-10000.01,0.00014544,2]
[394589068,1763742702146,-10000.01,0.00014544,2]
[394589069,1763742702289,-10000.01,0.00014544,2]
[394589070,1763742702423,-10000.01,0.00014544,2]
[394589071,1763742710497,-10000.01,0.00014544,2]
[394589072,1763742717060,-1935.62330058,0.00014543,2]
[394589073,1763742717107,-6128.76339884,0.00014544,2]
[394589074,1763742720071,-1454.81118466,0.00014544,2]
[394589075,1763742721166,-300.0,0.00014544,2]
[394589076,1763742722030,-300.0,0.00014544,2]
[394589077,1763742726609,-1000.0,0.00014544,2]
[394589078,1763742727880,-500.0,0.00014544,2]
[394589079,1763742775252,-191.78521167,0.00014543,2]
[394589080,1763742775298,-500.0,0.00014543,2]
[394589081,1763742775336,-307.70593718,0.00014543,2]
[394589082,1763742775372,-500.0,0.00014543,2]
[394589083,1763742775411,-162.10037777,0.00014543,2]
[394589084,1763742775604,-6676.82694676,0.00014544,2]
[394589085,1763742775692,-10000.01,0.00014544,2]
[394589086,1763742775719,-10000.01,0.00014544,2]